[Event "Late-Titled-Tuesday-Blitz-October-03-2023"]
[Site "Chess.com"]
[Date "2023.10.03"]
[Round "4"]
[White "hellokostya"]
[Black "Arystanner"]
[Result "0-1"]
[WhiteElo "2555"]
[BlackElo "2830"]
[TimeControl "180+1"]
[EndTime "14:39:14 PDT"]
[Termination "Arystanner won on time"]

1. Nf3 {[%clk 0:03:00.9]} 1... Nf6 {[%clk 0:02:58.9]} 2. c4 {[%clk 0:03:00.6]}
2... g6 {[%clk 0:02:59.5]} 3. Nc3 {[%clk 0:03:00.3]} 3... Bg7 {[%clk 0:02:59.9]}
4. e4 {[%clk 0:03:00.9]} 4... d6 {[%clk 0:03:00.2]} 5. d4 {[%clk 0:03:01.1]}
5... O-O {[%clk 0:03:00.5]} 6. Be2 {[%clk 0:03:00.9]} 6... e5 {[%clk 0:03:00.6]}
7. d5 {[%clk 0:03:01.3]} 7... Na6 {[%clk 0:02:55.7]} 8. h3 {[%clk 0:02:57.8]}
8... Nh5 {[%clk 0:02:54.8]} 9. Qc2 {[%clk 0:02:53.6]} 9... Nf4 {[%clk
0:02:53.5]} 10. Bf1 {[%clk 0:02:41.4]} 10... Nc5 {[%clk 0:02:51.9]} 11. g3
{[%clk 0:02:36.1]} 11... Nh5 {[%clk 0:02:52]} 12. Be3 {[%clk 0:02:34.8]} 12...
a5 {[%clk 0:02:51.6]} 13. Bxc5 {[%clk 0:02:33.2]} 13... dxc5 {[%clk 0:02:51.9]}
14. O-O-O {[%clk 0:02:33.4]} 14... Bd7 {[%clk 0:02:39.3]} 15. Kb1 {[%clk
0:02:32.2]} 15... Qe7 {[%clk 0:02:38.2]} 16. Be2 {[%clk 0:02:30]} 16... f5
{[%clk 0:02:34.8]} 17. Nd2 {[%clk 0:02:11.2]} 17... Nf6 {[%clk 0:02:34.3]} 18.
Bd3 {[%clk 0:02:03.8]} 18... a4 {[%clk 0:02:26.9]} 19. a3 {[%clk 0:01:57.8]}
19... Ne8 {[%clk 0:02:27]} 20. h4 {[%clk 0:01:55.3]} 20... Ra6 {[%clk
0:02:21.5]} 21. h5 {[%clk 0:01:53.8]} 21... f4 {[%clk 0:02:21]} 22. Ka2 {[%clk
0:01:46.6]} 22... fxg3 {[%clk 0:02:15.3]} 23. fxg3 {[%clk 0:01:46.6]} 23... Bg4
{[%clk 0:02:10.6]} 24. hxg6 {[%clk 0:01:43]} 24... hxg6 {[%clk 0:02:06.5]} 25.
Rdf1 {[%clk 0:01:41.9]} 25... Bd7 {[%clk 0:01:50.3]} 26. Nf3 {[%clk 0:01:31.8]}
26... Bf6 {[%clk 0:01:39.4]} 27. Nh4 {[%clk 0:01:28.2]} 27... Qg7 {[%clk
0:01:35.8]} 28. Rf2 {[%clk 0:01:12.1]} 28... Bg5 {[%clk 0:01:29.3]} 29. Rxf8+
{[%clk 0:01:11.2]} 29... Kxf8 {[%clk 0:01:30.2]} 30. Qf2+ {[%clk 0:01:10.2]}
30... Rf6 {[%clk 0:01:13]} 31. Qxc5+ {[%clk 0:01:10.7]} 31... Qe7 {[%clk
0:01:12.4]} 32. Qxe7+ {[%clk 0:00:48.3]} 32... Kxe7 {[%clk 0:01:12.2]} 33. Rf1
{[%clk 0:00:48.4]} 33... b6 {[%clk 0:01:00.1]} 34. Rxf6 {[%clk 0:00:44.6]} 34...
Kxf6 {[%clk 0:01:01]} 35. Nf3 {[%clk 0:00:42.3]} 35... Be3 {[%clk 0:00:59]} 36.
Bc2 {[%clk 0:00:41.4]} 36... Nd6 {[%clk 0:00:59.2]} 37. Bxa4 {[%clk 0:00:29.5]}
37... Bg4 {[%clk 0:00:59.1]} 38. Bd1 {[%clk 0:00:27.1]} 38... Nxc4 {[%clk
0:00:55.3]} 39. Be2 {[%clk 0:00:04.9]} 39... Nd6 {[%clk 0:00:54.1]} 40. Ne1
{[%clk 0:00:05.1]} 40... Bxe2 {[%clk 0:00:53.6]} 41. Nxe2 {[%clk 0:00:06]} 41...
Nxe4 {[%clk 0:00:54]} 42. b4 {[%clk 0:00:05.3]} 42... Bf2 {[%clk 0:00:50.8]} 43.
Nd3 {[%clk 0:00:04.9]} 43... Nxg3 {[%clk 0:00:41.4]} 44. Nxg3 {[%clk 0:00:05.2]}
44... Bxg3 {[%clk 0:00:41.7]} 45. a4 {[%clk 0:00:06]} 45... e4 {[%clk
0:00:41.8]} 46. Nc1 {[%clk 0:00:05.4]} 46... Ke5 {[%clk 0:00:40.7]} 47. Ne2
{[%clk 0:00:04.6]} 47... Be1 {[%clk 0:00:40]} 48. Kb3 {[%clk 0:00:04.4]} 48...
g5 {[%clk 0:00:38.4]} 49. Kc4 {[%clk 0:00:03.4]} 49... g4 {[%clk 0:00:38.3]} 50.
Kb5 {[%clk 0:00:03.4]} 50... Kxd5 {[%clk 0:00:37.3]} 51. a5 {[%clk 0:00:02.9]}
51... bxa5 {[%clk 0:00:37.4]} 52. bxa5 {[%clk 0:00:03.8]} 52... g3 {[%clk
0:00:36.1]} 53. a6 {[%clk 0:00:03.4]} 53... c6+ {[%clk 0:00:36]} 54. Ka4 {[%clk
0:00:01.5]} 54... Bf2 {[%clk 0:00:27]} 55. Nxg3 {[%clk 0:00:01.8]} 55... Bb6
{[%clk 0:00:27.5]} 56. Ne2 {[%clk 0:00:02]} 56... Kc4 {[%clk 0:00:27]} 57. Nf4
{[%clk 0:00:02]} 57... e3 {[%clk 0:00:26.6]} 58. Ne2 {[%clk 0:00:01.4]} 58...
Kd3 {[%clk 0:00:26.5]} 59. Nf4+ {[%clk 0:00:02.2]} 59... Kd2 {[%clk 0:00:26.9]}
60. Kb4 {[%clk 0:00:02]} 60... e2 {[%clk 0:00:25.8]} 61. Nxe2 {[%clk 0:00:02.6]}
61... Kxe2 {[%clk 0:00:26.7]} 62. Kc4 {[%clk 0:00:02.7]} 62... Ke3 {[%clk
0:00:27.2]} 0-1

[Event "Late-Titled-Tuesday-Blitz-October-03-2023"]
[Site "Chess.com"]
[Date "2023.10.03"]
[Round "4"]
[White "Good_Knight_Kiss"]
[Black "NowInChess"]
[Result "1-0"]
[WhiteElo "2430"]
[BlackElo "2214"]
[TimeControl "180+1"]
[EndTime "14:39:17 PDT"]
[Termination "Good_Knight_Kiss won on time"]

1. e4 {[%clk 0:03:00.9]} 1... e6 {[%clk 0:02:59.8]} 2. d4 {[%clk 0:03:00.7]}
2... d5 {[%clk 0:03:00.4]} 3. Nc3 {[%clk 0:03:00.7]} 3... Nc6 {[%clk 0:03:00.2]}
4. Nf3 {[%clk 0:02:57.7]} 4... Nf6 {[%clk 0:02:59.7]} 5. Bg5 {[%clk 0:02:56]}
5... Be7 {[%clk 0:02:59.1]} 6. e5 {[%clk 0:02:55]} 6... Ne4 {[%clk 0:02:56.2]}
7. Bxe7 {[%clk 0:02:53.7]} 7... Qxe7 {[%clk 0:02:57.1]} 8. Bd3 {[%clk
0:02:52.9]} 8... Qb4 {[%clk 0:02:55.2]} 9. O-O {[%clk 0:02:50.4]} 9... Nxc3
{[%clk 0:02:55.2]} 10. bxc3 {[%clk 0:02:51.3]} 10... Qxc3 {[%clk 0:02:55.7]} 11.
Rb1 {[%clk 0:02:48.7]} 11... Qa3 {[%clk 0:02:55.7]} 12. Qd2 {[%clk 0:02:42.8]}
12... h6 {[%clk 0:02:47.5]} 13. h4 {[%clk 0:02:39.6]} 13... Qe7 {[%clk
0:02:41.4]} 14. h5 {[%clk 0:02:33.5]} 14... b6 {[%clk 0:02:39.5]} 15. Bb5 {[%clk
0:02:13.7]} 15... Bd7 {[%clk 0:02:38.8]} 16. Qc3 {[%clk 0:02:10.9]} 16... Na5
{[%clk 0:02:21.1]} 17. Qxc7 {[%clk 0:02:06]} 17... Bxb5 {[%clk 0:02:07.5]} 18.
Qxe7+ {[%clk 0:02:05.1]} 18... Kxe7 {[%clk 0:02:08.4]} 19. Rxb5 {[%clk 0:02:05]}
19... Rhc8 {[%clk 0:02:06.3]} 20. Rc1 {[%clk 0:01:51.1]} 20... Rc3 {[%clk
0:02:02.7]} 21. Kf1 {[%clk 0:01:42.3]} 21... Rac8 {[%clk 0:02:01.9]} 22. Rb2
{[%clk 0:01:42.3]} 22... Nc4 {[%clk 0:01:58.8]} 23. Rb3 {[%clk 0:01:41.4]} 23...
Rxf3 {[%clk 0:01:35.9]} 24. Rxf3 {[%clk 0:01:28.4]} 24... Nd2+ {[%clk
0:01:36.1]} 25. Ke2 {[%clk 0:01:28]} 25... Nxf3 {[%clk 0:01:36.6]} 26. Kxf3
{[%clk 0:01:27.2]} 26... Rc3+ {[%clk 0:01:32.7]} 27. Ke2 {[%clk 0:01:24.1]}
27... f6 {[%clk 0:01:28.5]} 28. Kd2 {[%clk 0:01:09.6]} 28... Rc4 {[%clk
0:01:18.7]} 29. exf6+ {[%clk 0:01:07.9]} 29... Kxf6 {[%clk 0:00:55.5]} 30. c3
{[%clk 0:01:05.3]} 30... Ra4 {[%clk 0:00:48.9]} 31. Rc2 {[%clk 0:01:05.2]} 31...
Kg5 {[%clk 0:00:48.5]} 32. Ke3 {[%clk 0:00:57.8]} 32... Kxh5 {[%clk 0:00:47]}
33. Kf4 {[%clk 0:00:58]} 33... Kg6 {[%clk 0:00:43.1]} 34. Ke5 {[%clk 0:00:55.2]}
34... Kf7 {[%clk 0:00:43]} 35. Kd6 {[%clk 0:00:52]} 35... h5 {[%clk 0:00:29.6]}
36. f4 {[%clk 0:00:26.6]} 36... Kf6 {[%clk 0:00:14.4]} 37. Re2 {[%clk
0:00:25.6]} 37... Kf5 {[%clk 0:00:12.4]} 38. g3 {[%clk 0:00:22.8]} 38... Kg4
{[%clk 0:00:10.4]} 39. Re3 {[%clk 0:00:22.6]} 39... Rxa2 {[%clk 0:00:07.9]} 40.
Kxe6 {[%clk 0:00:22.1]} 40... a5 {[%clk 0:00:07.9]} 41. Kxd5 {[%clk 0:00:22.1]}
41... a4 {[%clk 0:00:08]} 42. Kc4 {[%clk 0:00:22.4]} 42... Rb2 {[%clk
0:00:08.2]} 43. d5 {[%clk 0:00:21]} 43... a3 {[%clk 0:00:08.4]} 44. Re1 {[%clk
0:00:21.1]} 44... Rd2 {[%clk 0:00:07.2]} 45. Ra1 {[%clk 0:00:11.9]} 45... a2
{[%clk 0:00:06.5]} 46. Kb3 {[%clk 0:00:11.7]} 46... Kxg3 {[%clk 0:00:06.4]} 47.
c4 {[%clk 0:00:11.4]} 47... h4 {[%clk 0:00:05.8]} 48. Kc3 {[%clk 0:00:04]} 48...
Rf2 {[%clk 0:00:02.9]} 49. d6 {[%clk 0:00:04.1]} 49... Rxf4 {[%clk 0:00:02.6]}
50. d7 {[%clk 0:00:03.8]} 50... Rf8 {[%clk 0:00:01.9]} 51. Rxa2 {[%clk 0:00:03]}
51... Rd8 {[%clk 0:00:01.5]} 52. Rd2 {[%clk 0:00:02.8]} 52... h3 {[%clk
0:00:02]} 53. Kb4 {[%clk 0:00:02.1]} 53... h2 {[%clk 0:00:01.5]} 54. Rd1 {[%clk
0:00:02.5]} 1-0

[Event "Late-Titled-Tuesday-Blitz-October-03-2023"]
[Site "Chess.com"]
[Date "2023.10.03"]
[Round "4"]
[White "GoltsevDmitry2000"]
[Black "vugarrasulov"]
[Result "0-1"]
[WhiteElo "2685"]
[BlackElo "2947"]
[TimeControl "180+1"]
[EndTime "14:39:27 PDT"]
[Termination "vugarrasulov won on time"]

1. e4 {[%clk 0:02:59.5]} 1... e5 {[%clk 0:02:58]} 2. Nf3 {[%clk 0:02:59.3]} 2...
Nc6 {[%clk 0:02:58.5]} 3. Bb5 {[%clk 0:02:59.4]} 3... g6 {[%clk 0:02:57.3]} 4.
O-O {[%clk 0:02:58.8]} 4... Bg7 {[%clk 0:02:57.4]} 5. c3 {[%clk 0:02:59.4]} 5...
d6 {[%clk 0:02:57.5]} 6. d4 {[%clk 0:02:59.5]} 6... Bd7 {[%clk 0:02:58.1]} 7.
dxe5 {[%clk 0:02:59.2]} 7... Nxe5 {[%clk 0:02:57.6]} 8. Bxd7+ {[%clk 0:02:56.1]}
8... Nxd7 {[%clk 0:02:56.8]} 9. Nbd2 {[%clk 0:02:54.4]} 9... Ngf6 {[%clk
0:02:57.2]} 10. Nc4 {[%clk 0:02:51.5]} 10... O-O {[%clk 0:02:52.8]} 11. e5
{[%clk 0:02:50.1]} 11... dxe5 {[%clk 0:02:51.8]} 12. Ncxe5 {[%clk 0:02:50.7]}
12... Nxe5 {[%clk 0:02:51.2]} 13. Nxe5 {[%clk 0:02:51.6]} 13... Re8 {[%clk
0:02:49.8]} 14. Nf3 {[%clk 0:02:42]} 14... h6 {[%clk 0:02:41.7]} 15. Bf4 {[%clk
0:02:40.3]} 15... Nd5 {[%clk 0:02:40]} 16. Bg3 {[%clk 0:02:39.1]} 16... c6
{[%clk 0:02:40.5]} 17. Qd3 {[%clk 0:02:35.9]} 17... Qb6 {[%clk 0:02:39.1]} 18.
Qc2 {[%clk 0:02:30.5]} 18... a5 {[%clk 0:02:32.4]} 19. Rfe1 {[%clk 0:02:29.5]}
19... a4 {[%clk 0:02:29.5]} 20. Be5 {[%clk 0:02:16.2]} 20... a3 {[%clk
0:02:20.7]} 21. b4 {[%clk 0:02:01.6]} 21... Qa6 {[%clk 0:02:13.1]} 22. Bxg7
{[%clk 0:01:46.4]} 22... Kxg7 {[%clk 0:02:14]} 23. Re4 {[%clk 0:01:42.8]} 23...
Nf6 {[%clk 0:02:01.8]} 24. Ree1 {[%clk 0:01:29.3]} 24... Qc4 {[%clk 0:01:59]}
25. Ne5 {[%clk 0:01:20.9]} 25... Qd5 {[%clk 0:01:48.7]} 26. f4 {[%clk
0:01:00.1]} 26... Rad8 {[%clk 0:01:30.5]} 27. Rad1 {[%clk 0:00:58.5]} 27... Qe6
{[%clk 0:01:31.1]} 28. c4 {[%clk 0:00:39.5]} 28... Rxd1 {[%clk 0:01:25.1]} 29.
Rxd1 {[%clk 0:00:39.9]} 29... Ng4 {[%clk 0:01:19.4]} 30. Qc3 {[%clk 0:00:17.7]}
30... Nxe5 {[%clk 0:01:09.8]} 31. fxe5 {[%clk 0:00:18.6]} 31... Qxe5 {[%clk
0:01:06.3]} 32. Qxa3 {[%clk 0:00:18.7]} 32... Qe2 {[%clk 0:00:52.2]} 33. Qd3
{[%clk 0:00:16.9]} 33... Qxa2 {[%clk 0:00:50.9]} 34. Rf1 {[%clk 0:00:14.3]}
34... Qe2 {[%clk 0:00:43.3]} 35. Qxe2 {[%clk 0:00:09.9]} 35... Rxe2 {[%clk
0:00:44.2]} 36. Rd1 {[%clk 0:00:09]} 36... Re4 {[%clk 0:00:38.4]} 37. Rd7 {[%clk
0:00:08.8]} 37... b5 {[%clk 0:00:38.7]} 38. c5 {[%clk 0:00:08.1]} 38... Rxb4
{[%clk 0:00:31.6]} 39. Rc7 {[%clk 0:00:08.2]} 39... Kf6 {[%clk 0:00:29.2]} 40.
Rxc6+ {[%clk 0:00:08.6]} 40... Ke5 {[%clk 0:00:30]} 41. Rc7 {[%clk 0:00:07.5]}
41... f5 {[%clk 0:00:24.9]} 42. Rc6 {[%clk 0:00:06.4]} 42... Rc4 {[%clk
0:00:23.1]} 43. Rxg6 {[%clk 0:00:06.7]} 43... b4 {[%clk 0:00:20.2]} 44. Rxh6
{[%clk 0:00:06.3]} 44... Kd4 {[%clk 0:00:19.7]} 45. Rb6 {[%clk 0:00:04.6]} 45...
Kc3 {[%clk 0:00:16]} 46. c6 {[%clk 0:00:04.6]} 46... b3 {[%clk 0:00:16.3]} 47.
Kf2 {[%clk 0:00:04.4]} 47... b2 {[%clk 0:00:16.4]} 48. g3 {[%clk 0:00:03.2]}
48... Kc2 {[%clk 0:00:16.5]} 49. h4 {[%clk 0:00:03.1]} 49... b1=Q {[%clk
0:00:16.5]} 50. Rxb1 {[%clk 0:00:03.6]} 50... Kxb1 {[%clk 0:00:17.4]} 51. Kf3
{[%clk 0:00:04.1]} 51... Kc2 {[%clk 0:00:16.7]} 52. h5 {[%clk 0:00:04]} 52...
Kd3 {[%clk 0:00:17.2]} 53. c7 {[%clk 0:00:04.3]} 53... Rxc7 {[%clk 0:00:16.3]}
54. Kf4 {[%clk 0:00:05.2]} 54... Rh7 {[%clk 0:00:10]} 55. Kg5 {[%clk 0:00:03.1]}
55... Ke4 {[%clk 0:00:10.6]} 56. Kg6 {[%clk 0:00:02.8]} 56... Rh8 {[%clk
0:00:09.9]} 57. h6 {[%clk 0:00:03.2]} 57... Rg8+ {[%clk 0:00:09.1]} 58. Kf7
{[%clk 0:00:03.3]} 58... Rxg3 {[%clk 0:00:10]} 59. h7 {[%clk 0:00:03]} 59... Rh3
{[%clk 0:00:10.5]} 60. Kg7 {[%clk 0:00:02]} 60... Rxh7+ {[%clk 0:00:10.4]} 0-1

[Event "Late-Titled-Tuesday-Blitz-October-03-2023"]
[Site "Chess.com"]
[Date "2023.10.03"]
[Round "4"]
[White "Kirill_Klukin"]
[Black "Grossboss19"]
[Result "1-0"]
[WhiteElo "2690"]
[BlackElo "2519"]
[TimeControl "180+1"]
[EndTime "14:39:28 PDT"]
[Termination "Kirill_Klukin won by resignation"]

1. e4 {[%clk 0:02:58.3]} 1... c6 {[%clk 0:02:58.5]} 2. Nf3 {[%clk 0:02:57.3]}
2... d5 {[%clk 0:02:57.8]} 3. Nc3 {[%clk 0:02:57.6]} 3... Bg4 {[%clk 0:02:53.9]}
4. h3 {[%clk 0:02:54.8]} 4... Bxf3 {[%clk 0:02:53.4]} 5. Qxf3 {[%clk 0:02:55.7]}
5... e6 {[%clk 0:02:53.9]} 6. d3 {[%clk 0:02:55.9]} 6... Nf6 {[%clk 0:02:52.1]}
7. Bd2 {[%clk 0:02:52.7]} 7... Qb6 {[%clk 0:02:49.5]} 8. Rb1 {[%clk 0:02:24.1]}
8... Nfd7 {[%clk 0:02:43.5]} 9. g3 {[%clk 0:02:20.9]} 9... Na6 {[%clk 0:02:42]}
10. Bg2 {[%clk 0:02:19.1]} 10... Nb4 {[%clk 0:02:35]} 11. Qd1 {[%clk 0:02:10]}
11... d4 {[%clk 0:02:25.9]} 12. Ne2 {[%clk 0:02:10]} 12... c5 {[%clk 0:02:23.4]}
13. O-O {[%clk 0:02:07.6]} 13... Be7 {[%clk 0:02:22.8]} 14. a3 {[%clk
0:02:04.2]} 14... Nc6 {[%clk 0:02:22.7]} 15. c3 {[%clk 0:02:04.9]} 15... Qc7
{[%clk 0:02:11.7]} 16. Rc1 {[%clk 0:02:01.3]} 16... e5 {[%clk 0:02:05.9]} 17. f4
{[%clk 0:02:00.7]} 17... Qd8 {[%clk 0:01:57.4]} 18. cxd4 {[%clk 0:01:55.1]}
18... cxd4 {[%clk 0:01:49.7]} 19. fxe5 {[%clk 0:01:51.5]} 19... Ndxe5 {[%clk
0:01:39]} 20. Nf4 {[%clk 0:01:51.8]} 20... O-O {[%clk 0:01:35.4]} 21. Qe2 {[%clk
0:01:51.4]} 21... Bg5 {[%clk 0:01:27.2]} 22. Rc5 {[%clk 0:01:41.2]} 22... b6
{[%clk 0:01:18.4]} 23. Rc2 {[%clk 0:01:21.9]} 23... Rc8 {[%clk 0:01:15.4]} 24.
Rfc1 {[%clk 0:01:21.6]} 24... Ne7 {[%clk 0:00:51.4]} 25. h4 {[%clk 0:01:14.2]}
25... Rxc2 {[%clk 0:00:48]} 26. Rxc2 {[%clk 0:01:14.2]} 26... Bh6 {[%clk
0:00:45.6]} 27. Bh3 {[%clk 0:01:12.5]} 27... Qd6 {[%clk 0:00:40.5]} 28. Bb4
{[%clk 0:01:11.4]} 28... Qd8 {[%clk 0:00:19.8]} 29. a4 {[%clk 0:00:53]} 29... a5
{[%clk 0:00:19.4]} 30. Ba3 {[%clk 0:00:53.1]} 30... Re8 {[%clk 0:00:17.9]} 31.
Kg2 {[%clk 0:00:45]} 31... Bxf4 {[%clk 0:00:16.9]} 32. gxf4 {[%clk 0:00:45.2]}
32... N5g6 {[%clk 0:00:17.1]} 33. Qf2 {[%clk 0:00:41.1]} 33... Qb8 {[%clk
0:00:13.6]} 34. Kg3 {[%clk 0:00:25.7]} 34... h5 {[%clk 0:00:05]} 35. b3 {[%clk
0:00:24.3]} 35... Kh7 {[%clk 0:00:02.8]} 36. Bc1 {[%clk 0:00:24.5]} 36... Ng8
{[%clk 0:00:02.5]} 37. Bf5 {[%clk 0:00:23.7]} 37... Nh6 {[%clk 0:00:02.4]} 38.
Bh3 {[%clk 0:00:20.9]} 38... Ng4 {[%clk 0:00:01.6]} 39. Bxg4 {[%clk 0:00:20.5]}
39... hxg4 {[%clk 0:00:02.5]} 40. h5 {[%clk 0:00:20.9]} 40... Rc8 {[%clk
0:00:03.4]} 41. hxg6+ {[%clk 0:00:20.9]} 41... fxg6 {[%clk 0:00:03.7]} 42. Rxc8
{[%clk 0:00:21.2]} 42... Qxc8 {[%clk 0:00:04.6]} 43. Qh2+ {[%clk 0:00:18.6]}
43... Kg8 {[%clk 0:00:04.6]} 44. Qd2 {[%clk 0:00:17.1]} 44... g5 {[%clk
0:00:02.4]} 45. fxg5 {[%clk 0:00:14.7]} 45... Qd7 {[%clk 0:00:02]} 46. Bb2
{[%clk 0:00:13.8]} 46... Qe6 {[%clk 0:00:02.2]} 47. Qf4 {[%clk 0:00:10.5]} 47...
Qxb3 {[%clk 0:00:01.6]} 48. Bxd4 {[%clk 0:00:09.2]} 48... Qxd3+ {[%clk
0:00:01.7]} 49. Qe3 {[%clk 0:00:09.4]} 49... Qd1 {[%clk 0:00:02.2]} 50. Bxb6
{[%clk 0:00:09.2]} 50... Qxa4 {[%clk 0:00:02.4]} 51. Kxg4 {[%clk 0:00:09.7]}
51... Qd7+ {[%clk 0:00:01.8]} 52. Kf3 {[%clk 0:00:09.8]} 52... a4 {[%clk
0:00:02.7]} 53. Bc5 {[%clk 0:00:08.4]} 53... Qd1+ {[%clk 0:00:02.4]} 54. Kg3
{[%clk 0:00:08.5]} 54... Qb3 {[%clk 0:00:01.2]} 55. Qxb3+ {[%clk 0:00:07.6]}
55... axb3 {[%clk 0:00:02.1]} 56. Bd4 {[%clk 0:00:08.3]} 56... g6 {[%clk
0:00:03]} 57. Kf4 {[%clk 0:00:08.6]} 57... Kf7 {[%clk 0:00:03.9]} 58. Ke5 {[%clk
0:00:09]} 58... Ke7 {[%clk 0:00:04.2]} 59. Bb2 {[%clk 0:00:09.4]} 59... Kd7
{[%clk 0:00:05]} 60. Kf6 {[%clk 0:00:09.9]} 60... Kd6 {[%clk 0:00:05.3]} 61.
Kxg6 {[%clk 0:00:10.4]} 61... Kc5 {[%clk 0:00:06.2]} 62. Kf6 {[%clk 0:00:10.9]}
62... Kc4 {[%clk 0:00:07.1]} 63. e5 {[%clk 0:00:11.6]} 63... Kd3 {[%clk
0:00:08]} 64. e6 {[%clk 0:00:12]} 64... Kc2 {[%clk 0:00:08.5]} 65. Be5 {[%clk
0:00:12.7]} 65... b2 {[%clk 0:00:08.8]} 66. Bxb2 {[%clk 0:00:13.3]} 66... Kxb2
{[%clk 0:00:09.7]} 67. e7 {[%clk 0:00:14.2]} 1-0

[Event "Late-Titled-Tuesday-Blitz-October-03-2023"]
[Site "Chess.com"]
[Date "2023.10.03"]
[Round "4"]
[White "alexrustemov"]
[Black "arminmusovic"]
[Result "1-0"]
[WhiteElo "2823"]
[BlackElo "2504"]
[TimeControl "180+1"]
[EndTime "14:39:28 PDT"]
[Termination "alexrustemov won by resignation"]

1. d4 {[%clk 0:03:00.9]} 1... d5 {[%clk 0:02:59.3]} 2. c4 {[%clk 0:03:00.7]}
2... c5 {[%clk 0:03:00.2]} 3. cxd5 {[%clk 0:02:57.5]} 3... Nf6 {[%clk
0:03:00.7]} 4. Nf3 {[%clk 0:02:40.8]} 4... cxd4 {[%clk 0:03:00.5]} 5. Qxd4
{[%clk 0:02:38.3]} 5... Qxd5 {[%clk 0:03:00.8]} 6. Nc3 {[%clk 0:02:38]} 6...
Qxd4 {[%clk 0:03:01.4]} 7. Nxd4 {[%clk 0:02:38.6]} 7... a6 {[%clk 0:03:02.3]} 8.
g3 {[%clk 0:02:35.9]} 8... e5 {[%clk 0:03:02.2]} 9. Nb3 {[%clk 0:02:35.3]} 9...
Nc6 {[%clk 0:03:01.8]} 10. Bg2 {[%clk 0:02:35.5]} 10... Be6 {[%clk 0:03:02.6]}
11. Be3 {[%clk 0:02:17]} 11... O-O-O {[%clk 0:02:59.3]} 12. Rc1 {[%clk
0:02:09.3]} 12... Nd5 {[%clk 0:02:33.9]} 13. Bc5 {[%clk 0:01:46.2]} 13... Kb8
{[%clk 0:02:08.8]} 14. Bxf8 {[%clk 0:01:41.5]} 14... Rhxf8 {[%clk 0:02:02]} 15.
Nc5 {[%clk 0:01:40.7]} 15... Ncb4 {[%clk 0:01:37.9]} 16. Nxe6 {[%clk 0:01:35.9]}
16... fxe6 {[%clk 0:01:38.1]} 17. a3 {[%clk 0:01:35.6]} 17... Nc6 {[%clk
0:01:16.3]} 18. e3 {[%clk 0:01:30.7]} 18... Na5 {[%clk 0:01:08.6]} 19. Ke2
{[%clk 0:01:28]} 19... Nb3 {[%clk 0:01:05.7]} 20. Rc2 {[%clk 0:01:21.3]} 20...
Nxc3+ {[%clk 0:01:06.2]} 21. bxc3 {[%clk 0:01:20.6]} 21... Rd6 {[%clk
0:00:55.7]} 22. Rb1 {[%clk 0:01:18.6]} 22... Nc5 {[%clk 0:00:56.1]} 23. Rb4
{[%clk 0:01:12.5]} 23... Rc8 {[%clk 0:00:47.5]} 24. Rd2 {[%clk 0:01:08.7]} 24...
Rxd2+ {[%clk 0:00:43.5]} 25. Kxd2 {[%clk 0:01:09.3]} 25... Rf8 {[%clk
0:00:42.9]} 26. Ke2 {[%clk 0:01:09.2]} 26... Rd8 {[%clk 0:00:41.8]} 27. Be4
{[%clk 0:01:06]} 27... g6 {[%clk 0:00:39.8]} 28. Bc2 {[%clk 0:01:05.4]} 28...
Kc7 {[%clk 0:00:37]} 29. h4 {[%clk 0:01:04.6]} 29... b5 {[%clk 0:00:36.9]} 30.
h5 {[%clk 0:01:04.6]} 30... Rg8 {[%clk 0:00:30]} 31. Rg4 {[%clk 0:01:00.1]}
31... Kb6 {[%clk 0:00:20]} 32. hxg6 {[%clk 0:00:58.9]} 32... hxg6 {[%clk
0:00:20.9]} 33. Rxg6 {[%clk 0:00:58.6]} 33... Rh8 {[%clk 0:00:21.5]} 34. Bf5
{[%clk 0:00:54.2]} 34... Re8 {[%clk 0:00:21]} 35. g4 {[%clk 0:00:49.2]} 35...
Ka5 {[%clk 0:00:21.4]} 36. Bc2 {[%clk 0:00:48.7]} 36... Rc8 {[%clk 0:00:21.7]}
37. g5 {[%clk 0:00:47]} 37... e4 {[%clk 0:00:21.4]} 38. Rf6 {[%clk 0:00:43.8]}
38... Rg8 {[%clk 0:00:17.4]} 39. g6 {[%clk 0:00:43.3]} 39... Kb6 {[%clk
0:00:18]} 40. Bxe4 {[%clk 0:00:41.5]} 40... Nxe4 {[%clk 0:00:13.5]} 41. Rxe6+
{[%clk 0:00:41.7]} 41... Kc5 {[%clk 0:00:12.2]} 42. Rxe4 {[%clk 0:00:42.1]}
42... Rxg6 {[%clk 0:00:12.8]} 43. Kd3 {[%clk 0:00:38.7]} 43... Rg1 {[%clk
0:00:13]} 44. a4 {[%clk 0:00:36.4]} 44... Rd1+ {[%clk 0:00:08.5]} 45. Kc2 {[%clk
0:00:35.7]} 45... Rf1 {[%clk 0:00:08.3]} 46. Rf4 {[%clk 0:00:34.1]} 46... bxa4
{[%clk 0:00:07.8]} 47. Kb2 {[%clk 0:00:33]} 47... a5 {[%clk 0:00:07.2]} 48. Ka2
{[%clk 0:00:24]} 48... Kb5 {[%clk 0:00:07.2]} 49. f3 {[%clk 0:00:21]} 49... Rc1
{[%clk 0:00:03.8]} 50. Kb2 {[%clk 0:00:20.7]} 50... Re1 {[%clk 0:00:04.1]} 51.
Re4 {[%clk 0:00:20.1]} 51... Rf1 {[%clk 0:00:04.1]} 52. f4 {[%clk 0:00:20.2]}
52... Re1 {[%clk 0:00:03.6]} 53. f5 {[%clk 0:00:19.4]} 53... Re2+ {[%clk
0:00:03.9]} 54. Ka3 {[%clk 0:00:18.9]} 54... Re1 {[%clk 0:00:04.8]} 55. f6
{[%clk 0:00:18.3]} 55... Ra1+ {[%clk 0:00:04.6]} 56. Kb2 {[%clk 0:00:18.4]}
56... Rh1 {[%clk 0:00:05.3]} 57. Rf4 {[%clk 0:00:18.2]} 57... Rh2+ {[%clk
0:00:05.8]} 58. Ka3 {[%clk 0:00:17.7]} 58... Rh8 {[%clk 0:00:06.7]} 59. f7
{[%clk 0:00:17.8]} 59... Rf8 {[%clk 0:00:07.2]} 60. c4+ {[%clk 0:00:17]} 60...
Kc5 {[%clk 0:00:07.4]} 61. Kxa4 {[%clk 0:00:17.6]} 61... Kd6 {[%clk 0:00:07.6]}
62. Kxa5 {[%clk 0:00:17.7]} 62... Ke5 {[%clk 0:00:08.5]} 63. Kb6 {[%clk
0:00:17.2]} 63... Ke6 {[%clk 0:00:08.9]} 64. c5 {[%clk 0:00:17.3]} 64... Ke7
{[%clk 0:00:09.8]} 65. c6 {[%clk 0:00:17.5]} 65... Rb8+ {[%clk 0:00:10.5]} 66.
Kc7 {[%clk 0:00:17.5]} 66... Rf8 {[%clk 0:00:10.4]} 67. Kb7 {[%clk 0:00:17.9]}
67... Ke6 {[%clk 0:00:09.9]} 68. c7 {[%clk 0:00:17.9]} 1-0